bitfinex-derivatives/quotes_SOLF0:USTF0_20250905
["timestamp","ask_amount","ask_price","bid_price","bid_amount"]
[1757031579108,9.48692677,202.38,202.32,1.71692677]
[1757031580208,7.77,202.38,202.32,1.71692677]
[1757031581301,7.77,202.38,202.34,1.71692677]
[1757031581506,7.77,202.38,202.35,0.58]
[1757031584307,7.77,202.38,202.34,2.29692677]
[1757031584704,7.77,202.38,202.26,89.0692]
[1757031584705,1.71692677,202.39,202.25,0.58]
[1757031584906,1.71692677,202.35,202.23,0.58]
[1757031585104,7.77,202.34,202.28,1.71692677]
[1757031588612,7.77,202.34,202.26,0.58]
[1757031588812,7.88,202.32,202.23,123.85]
[1757031589007,7.88,202.32,202.26,1.71692677]
[1757031589209,1.71692677,202.33,202.23,123.85]
[1757031589512,7.88,202.32,202.26,1.71692677]
[1757031594709,7.88,202.32,202.28,1.71692677]
[1757031594915,7.88,202.32,202.28,2.30692677]
[1757031595413,1.71692677,202.34,202.22,318.18]
[1757031595605,1.71692677,202.34,202.28,1.71692677]
[1757031596210,7.88,202.33,202.28,1.71692677]
[1757031596710,1.71692677,202.34,202.28,1.71692677]
[1757031596911,7.88,202.33,202.25,0.59]
[1757031597112,7.88,202.33,202.28,1.71692677]
[1757031597415,1.71692677,202.34,202.28,1.71692677]
[1757031597916,7.88,202.33,202.28,1.71692677]
[1757031598216,1.71692677,202.34,202.28,1.71692677]
[1757031598515,7.88,202.33,202.28,1.71692677]
[1757031598716,1.71692677,202.34,202.28,1.71692677]
[1757031598917,7.88,202.33,202.28,1.71692677]
[1757031599116,1.71692677,202.34,202.28,1.71692677]
[1757031599308,7.88,202.33,202.28,1.71692677]
[1757031599817,1.71692677,202.34,202.28,1.71692677]
[1757031600615,9.59692677,202.34,202.28,1.71692677]
[1757031600920,7.88,202.36,202.3,1.71692677]
[1757031603517,7.88,202.36,202.28,3.27782226]
[1757031604417,7.88,202.36,202.27,2.68782226]
[1757031607020,7.88,202.36,202.24,3.27782226]
[1757031607522,7.88,202.34,202.24,3.27782226]
[1757031612614,7.88,202.34,202.24,0.59]
[1757031616823,7.88,202.35,202.22,2.68782226]
[1757031617326,7.88,202.35,202.21,0.59]
[1757031617327,7.88,202.32,202.19,4.13908963]
[1757031617524,7.88,202.32,202.2,2.68782226]
[1757031618128,7.81,202.29,202.18,0.59]
[1757031618326,7.81,202.29,202.16,2.68782226]
[1757031618523,5.46869586,202.25,202.07,4.73]
[1757031618726,2.68782226,202.21,202.09,2.68782226]
[1757031618932,7.81,202.2,202.09,2.68782226]
[1757031619225,7.81,202.2,202.14,2.68782226]
[1757031619825,7.81,202.2,202.13,2.68782226]
[1757031621233,7.81,202.2,202.12,2.68782226]
[1757031621531,7.81,202.2,202.12,7.42782226]
[1757031624442,7.81,202.28,202.13,4.74]
[1757031624637,7.81,202.25,202.13,4.74]
[1757031625841,7.81,202.25,202.15,2.68782226]
[1757031626042,7.81,202.25,202.16,4.74]
[1757031626544,7.81,202.25,202.16,7.42782226]
[1757031626947,7.81,202.25,202.16,4.74]
[1757031627148,7.81,202.25,202.16,7.42782226]
[1757031628044,10.49782226,202.25,202.16,4.74]
[1757031628250,7.81,202.24,202.13,7.42782226]
[1757031629045,7.81,202.21,202.1,7.42782226]
[1757031629446,7.81,202.21,202.1,4.74]
[1757031631554,7.81,202.19,202.1,4.74]
[1757031634353,2.68782226,202.21,202.06,326.02782226]
[1757031634751,7.81,202.18,202.06,326.02782226]
[1757031637449,2.68782226,202.19,202.06,326.02782226]
[1757031637649,7.81,202.18,202.06,326.02782226]
[1757031638154,7.81,202.18,202.07,4.76]
[1757031640255,0.03401967,202.15,202.1,0.03386444]
[1757031640456,7.81,202.14,202.1,0.03386444]
[1757031640649,0.03401967,202.15,202.1,0.03386444]
[1757031641456,7.81,202.14,202.1,0.03386444]
[1757031642255,0.03401967,202.15,202.1,0.03386444]
[1757031642458,7.81,202.14,202.1,0.03386444]
[1757031642756,0.03401967,202.15,202.1,0.03386444]
[1757031642951,7.81,202.14,202.1,0.03386444]
[1757031643159,0.03401967,202.15,202.1,0.03386444]
[1757031643859,7.81,202.14,202.1,0.03386444]
[1757031644060,0.03401967,202.15,202.1,0.03386444]
[1757031645156,7.81,202.14,202.1,0.03386444]
[1757031645355,0.03401967,202.15,202.1,0.03386444]
[1757031645856,7.81,202.14,202.1,0.03386444]
[1757031646456,0.03401967,202.15,202.1,0.03386444]
[1757031646662,7.81,202.14,202.1,0.03386444]
[1757031646959,0.03401967,202.15,202.1,0.03386444]
[1757031647160,7.81,202.14,202.1,0.03386444]
[1757031647562,0.03401967,202.15,202.1,0.03386444]
[1757031647762,8.09,202.14,202.1,0.03386444]
[1757031647957,0.03401967,202.15,202.1,0.03386444]
[1757031648659,8.09,202.14,202.1,0.03386444]
[1757031649558,0.03401967,202.15,202.1,0.03386444]
[1757031650162,8.09,202.14,202.1,0.03386444]
[1757031651165,8.09,202.14,202.11,4.74]
[1757031652365,8.09,202.14,202.1,0.03386444]
[1757031652569,8.09,202.14,202.1,4.77386444]
[1757031653263,8.09,202.14,202.1,0.03386444]
[1757031653469,8.09,202.14,202.1,4.77386444]
[1757031653664,8.09,202.14,202.11,4.74]
[1757031655370,8.09,202.14,202.1,0.03386444]
[1757031655566,8.09,202.14,202.1,4.77386444]
[1757031657067,8.09,202.14,202.11,4.74]
[1757031657570,8.09,202.14,202.1,0.03386444]
[1757031657973,8.09,202.14,202.11,4.74]
[1757031659373,8.09,202.14,202.1,0.03386444]
[1757031659571,8.09,202.14,202.1,4.77386444]
[1757031660170,8.09,202.14,202.11,4.74]
[1757031663068,8.09,202.14,202.1,0.03386444]
[1757031663276,0.03401967,202.15,202.1,0.03386444]
[1757031663972,10.77782226,202.14,202.1,0.03386444]
[1757031664575,2.68782226,202.14,202.1,0.03386444]
[1757031664772,8.09,202.13,202.1,0.03386444]
[1757031665472,9.46940924,202.12,202.1,0.03386444]
[1757031666371,8.09,202.12,202.1,0.03386444]
[1757031666772,8.09,202.13,202.1,0.03386444]
[1757031668176,1.37940924,202.14,202.1,0.03386444]
[1757031668573,8.09,202.13,202.1,0.03386444]
[1757031668780,8.09,202.13,202.1,4.77386444]
[1757031669378,9.46940924,202.14,202.11,4.74]
[1757031669774,8.09,202.13,202.1,0.03386444]
[1757031669981,8.09,202.13,202.1,4.77386444]
[1757031670278,1.37940924,202.14,202.1,0.03386444]
[1757031670481,8.09,202.13,202.1,0.03386444]
[1757031671083,8.09,202.13,202.1,4.77386444]
[1757031671276,1.37940924,202.14,202.1,0.03386444]
[1757031671478,8.09,202.13,202.1,0.03386444]
[1757031672377,0.03401967,202.15,202.1,0.03386444]
[1757031672577,1.41342891,202.15,202.1,0.03386444]
[1757031673380,1.37940924,202.13,202.1,0.03386444]
[1757031673575,8.09,202.12,202.1,0.03386444]
[1757031673974,1.37940924,202.13,202.1,0.03386444]
[1757031674477,5.50271553,202.15,202.1,0.03386444]
[1757031674478,0.03401967,202.15,202.1,0.03386444]
[1757031674682,8.09,202.12,202.1,0.03386444]
[1757031675482,1.37940924,202.13,202.1,0.03386444]
[1757031676279,8.09,202.12,202.1,0.03386444]
[1757031676784,1.37940924,202.13,202.1,0.03386444]
[1757031677083,9.46940924,202.11,202.1,0.03386444]
[1757031678575,9.46940924,202.11,201.99,4.74]
[1757031678576,9.96940924,202.11,201.99,4.74]
[1757031678775,1.37940924,202.07,201.99,6.11940924]
[1757031679185,9.22940924,202.09,202.01,1.37940924]
[1757031679677,9.22940924,202.07,202.01,1.37940924]
[1757031679880,9.26347505,202.07,202.01,1.37940924]
[1757031680389,9.26347505,202.07,202.01,4.78]
[1757031680578,9.26347505,202.07,202.02,1.37940924]
[1757031680579,0.03406581,202.07,202.02,1.37940924]
[1757031680782,0.03406581,202.07,202.05,4.78]
[1757031682489,0.03406581,202.07,202.04,4.78]
[1757031683686,0.03406581,202.07,202.01,1.37940924]
[1757031683988,0.03406581,202.07,202.02,4.78]
[1757031684192,0.03406581,202.07,202.01,1.37940924]
[1757031684991,7.88406581,202.07,202.01,1.37940924]
[1757031687387,0.03406581,202.07,202.01,6.15940924]
[1757031687899,0.03406581,202.07,202.01,4.78]
[1757031688300,1.41347505,202.07,202.01,4.78]
[1757031688897,7.85,202.06,201.98,6.15940924]
[1757031689100,1.37940924,202.05,201.98,6.15940924]
[1757031689297,7.85,202.04,201.98,6.15940924]
[1757031689501,7.88381655,202.04,201.98,6.15940924]
[1757031693308,7.88381655,202.04,201.98,4.78]
[1757031693500,7.85,202.02,201.95,1.37940924]
[1757031693805,1.37940924,201.96,201.83,8.9468954]
[1757031694006,9.22940924,201.91,201.83,4.78]
[1757031694204,9.22940924,201.91,201.83,6.15940924]
[1757031694405,7.85,201.91,201.83,4.78]
[1757031694706,7.85,201.88,201.84,1.37940924]
[1757031694911,3.86866471,201.87,201.83,1.37940924]
[1757031695107,7.88608535,201.89,201.83,9.42940924]
[1757031695305,3.86315359,201.88,201.84,8.05]
[1757031695608,7.88608535,201.89,201.84,8.05]
[1757031696001,7.85,201.88,201.84,8.05]
[1757031696198,7.85,201.88,201.83,1.37940924]
[1757031696199,7.85,201.86,201.76,8.05]
[1757031696401,0.03608535,201.89,201.84,1.37940924]
[1757031696604,7.85,201.91,201.85,8.05]
[1757031696798,0.03350734,201.89,201.84,1.37940924]
[1757031697109,7.85,201.94,201.87,8.05]
[1757031697301,0.03444532,201.89,201.87,8.05]
[1757031697504,0.03444532,201.89,201.86,1.37940924]
[1757031697699,0.03444532,201.89,201.87,8.05]
[1757031698608,0.03444532,201.89,201.86,8.05]
[1757031698804,0.03444532,201.89,201.87,8.05]
[1757031699003,0.03444532,201.89,201.86,1.37940924]
[1757031699209,0.03444532,201.89,201.87,8.05]
[1757031699611,0.03444532,201.89,201.86,1.37940924]
[1757031700409,0.03444532,201.89,201.79,8.05]
[1757031700709,0.03444532,201.89,201.83,8.05]
[1757031701608,0.03444532,201.89,201.83,9.42940924]
[1757031704314,1.37940924,201.88,201.81,1.37940924]
[1757031704513,0.03444532,201.89,201.83,1.37940924]
[1757031704916,0.03444532,201.89,201.79,125.12]
[1757031705115,0.03444532,201.89,201.88,8.05]
[1757031705315,1.37940924,201.98,201.91,1.37940924]
[1757031705512,1.37940924,201.99,201.91,9.42940924]
[1757031705907,3.76619096,201.98,201.91,9.42940924]
[1757031706111,7.85,202.0,201.91,9.42940924]
[1757031706316,1.37940924,201.98,201.91,9.42940924]
[1757031706613,9.22940924,202.0,201.91,9.42940924]
[1757031706806,3.76643179,201.99,201.93,1.37940924]
[1757031707011,9.22940924,202.0,201.93,1.37940924]
[1757031707315,3.76657812,201.99,201.93,1.37940924]
[1757031707517,7.85,202.0,201.93,1.37940924]
[1757031707815,3.76695417,201.99,201.93,1.37940924]
[1757031708012,7.85,202.0,201.93,1.37940924]
[1757031708213,3.76695295,201.99,201.93,1.37940924]
[1757031708413,7.85,202.0,201.93,1.37940924]
[1757031708712,3.76741786,201.99,201.93,1.37940924]
[1757031709016,7.85,202.0,201.93,1.37940924]
[1757031709314,3.76741786,201.99,201.93,1.37940924]
[1757031709517,7.85,202.0,201.93,1.37940924]
[1757031709711,7.85,202.0,201.87,4.4577]
[1757031709712,1.37940924,202.05,201.97,1.37940924]
[1757031710418,1.37940924,202.05,201.99,1.37940924]
[1757031710614,8.16,202.06,201.99,1.37940924]
[1757031711120,8.16,202.06,202.01,9.58940924]
[1757031711713,9.53940924,202.1,202.03,1.37940924]
[1757031711920,9.53940924,202.1,202.02,8.21]
[1757031712117,8.16,202.1,202.04,1.37940924]
[1757031712417,8.16,202.1,202.06,1.37940924]
[1757031712620,1.37940924,202.14,202.06,9.58940924]
[1757031712821,8.16,202.13,202.08,1.37940924]
[1757031713220,4.4527,202.11,202.07,1.37940924]
[1757031713517,12.6127,202.11,201.99,4.455]
[1757031713722,12.6127,202.11,202.08,1.37940924]
[1757031713918,4.4527,202.11,202.08,1.37940924]
[1757031714416,4.452,202.14,202.04,34.94]
[1757031714625,4.452,202.14,202.1,1.37940924]
[1757031714922,4.452,202.14,202.1,9.58940924]
[1757031715720,4.4523,202.12,202.05,8.21]
[1757031715916,4.4523,202.12,202.1,1.37940924]
[1757031716419,4.4529,202.1,202.06,1.37940924]
[1757031716618,4.4529,202.1,202.07,8.21]
[1757031716820,4.4529,202.1,202.08,1.37940924]
[1757031717221,4.4529,202.1,201.99,8.21]
[1757031717422,4.4529,202.1,202.07,1.37940924]
[1757031717727,12.6129,202.1,202.07,1.37940924]
[1757031719018,4.4529,202.1,202.07,1.37940924]
[1757031719424,4.4529,202.1,202.09,1.37940924]
[1757031719619,12.6122,202.13,202.09,1.37940924]
[1757031719824,4.4522,202.13,202.09,9.58940924]
[1757031720215,4.4522,202.13,202.1,1.37940924]
[1757031720419,12.6115,202.16,202.1,1.37940924]
[1757031722423,12.6115,202.16,202.12,1.37940924]
[1757031722927,8.16,202.16,202.12,1.37940924]
[1757031723127,8.16,202.16,202.12,1.41538386]
[1757031723330,8.19446073,202.16,202.12,1.41538386]
[1757031723628,0.03446073,202.16,202.14,9.58940924]
[1757031724624,0.03446073,202.16,202.15,8.21]
[1757031725023,0.03446073,202.16,202.15,8.71]
[1757031725521,0.03446073,202.16,202.15,10.86259008]
[1757031725723,0.03446073,202.16,202.15,136.32259008]
[1757031726523,8.16,202.23,202.19,8.21]
[1757031726718,4.4494,202.26,202.19,8.21]
[1757031726918,8.16,202.23,202.16,12.98]
[1757031727521,4.4502,202.22,202.13,8.21]
[1757031727716,4.4502,202.22,202.17,0.03611203]
[1757031727924,8.16,202.21,202.17,0.03611203]
[1757031728528,8.16,202.23,202.17,0.03611203]
[1757031734830,8.16,202.27,202.18,10.36259008]
[1757031735225,8.16,202.27,202.18,54.06259008]
[1757031735927,8.16,202.27,202.21,2.15259008]
[1757031736229,8.16,202.31,202.22,8.21]
[1757031736623,8.16,202.31,202.22,8.24313]
[1757031737120,8.16,202.31,202.24,2.15259008]
[1757031737522,8.16,202.31,202.22,8.24313]
[1757031737724,8.16,202.31,202.24,2.15259008]
[1757031739023,8.16,202.31,202.23,2.15259008]
[1757031739923,8.16,202.31,202.23,9.89259008]
[1757031742226,8.16,202.31,202.26,2.15259008]
[1757031742427,7.74,202.36,202.26,2.15259008]
[1757031742630,7.74,202.36,202.26,9.89259008]
[1757031742830,7.74,202.36,202.29,0.03650135]
[1757031747733,7.74,202.36,202.29,9.92909143]
[1757031748235,7.74,202.42,202.32,2.15259008]
[1757031748834,7.74,202.42,202.35,0.0345725]
[1757031749230,7.74,202.42,202.35,2.18716258]
[1757031749431,12.1859,202.42,202.35,2.18716258]
[1757031749938,12.1859,202.42,202.35,9.92716258]
[1757031750328,7.74,202.42,202.35,9.92716258]
[1757031750527,4.4462,202.4,202.36,7.74]
[1757031751133,4.4467,202.38,202.35,0.0345725]
[1757031751334,7.74,202.37,202.35,0.0345725]
[1757031751537,4.4467,202.38,202.35,0.0345725]
[1757031751735,12.1867,202.38,202.35,0.0345725]
[1757031752737,4.4467,202.38,202.35,0.0345725]
[1757031753639,4.4461,202.41,202.35,7.7745725]
[1757031754942,4.4461,202.41,202.36,2.15259008]
[1757031755334,4.4461,202.41,202.37,7.74]
[1757031755638,7.74,202.42,202.36,9.89259008]
[1757031756536,7.74,202.48,202.39,9.89259008]
[1757031757040,7.74,202.48,202.41,0.03715343]
[1757031760043,0.03405611,202.47,202.41,0.03715343]
[1757031760244,0.03405611,202.47,202.41,2.18974351]
[1757031762636,0.03405611,202.47,202.41,0.03715343]
[1757031762844,0.03405611,202.47,202.43,7.74]
[1757031763842,7.77405611,202.47,202.43,7.74]
[1757031764640,7.74,202.46,202.42,2.15259008]
[1757031765241,7.74,202.46,202.42,9.89259008]
[1757031766340,7.74,202.46,202.41,0.03715343]
[1757031766547,0.03405611,202.47,202.41,0.03715343]
[1757031766743,7.74,202.46,202.41,0.03715343]
[1757031767140,0.03405611,202.47,202.41,0.03715343]
[1757031767446,7.74,202.46,202.41,0.03715343]
[1757031767746,7.49,202.46,202.41,0.03715343]
[1757031767941,0.03405611,202.47,202.41,0.03715343]
[1757031768145,7.49,202.46,202.41,0.03715343]
[1757031768344,9.64259008,202.46,202.41,0.03715343]
[1757031770548,2.15259008,202.46,202.41,0.03715343]
[1757031771050,7.49,202.45,202.41,0.03715343]
[1757031771439,2.15259008,202.46,202.41,0.03715343]
[1757031771648,7.49,202.45,202.41,0.03715343]
[1757031771849,2.15259008,202.46,202.41,0.03715343]
[1757031772252,7.49,202.45,202.41,0.03715343]
[1757031772445,2.15259008,202.46,202.41,0.03715343]
[1757031772854,7.49,202.46,202.41,0.03715343]
[1757031773053,9.64259008,202.46,202.41,0.03715343]
[1757031774244,2.15259008,202.46,202.41,0.03715343]
[1757031774651,7.49,202.45,202.41,0.03715343]
[1757031774848,2.15259008,202.46,202.41,0.03715343]
[1757031775743,7.49,202.45,202.41,0.03715343]
[1757031776148,2.15259008,202.46,202.41,0.03715343]
[1757031776551,7.49,202.46,202.41,0.03715343]
[1757031777056,2.18664619,202.47,202.41,0.03715343]
[1757031777251,7.49,202.46,202.41,0.03715343]
[1757031777447,2.18664619,202.47,202.41,0.03715343]
[1757031777853,7.49,202.46,202.41,0.03715343]
[1757031778457,2.18664619,202.47,202.41,0.03715343]
[1757031778656,7.49,202.46,202.41,0.03715343]
[1757031778859,2.18664619,202.47,202.41,0.03715343]
[1757031779155,7.49,202.46,202.41,0.03715343]
[1757031779353,2.18664619,202.47,202.41,0.03715343]
[1757031779557,7.49,202.46,202.41,0.03715343]
[1757031779759,2.18664619,202.47,202.41,0.03715343]
[1757031779958,7.49,202.46,202.41,0.03715343]
[1757031780661,7.52405611,202.47,202.41,0.03715343]
[1757031784064,0.03405611,202.47,202.41,0.03715343]
[1757031784262,0.03405611,202.47,202.42,7.4]
[1757031784460,0.03405611,202.47,202.41,2.18974351]
[1757031785060,0.03405611,202.47,202.42,7.4]
[1757031785564,0.03405611,202.47,202.44,8.7743071]
[1757031785763,0.03405611,202.47,202.45,7.4]
[1757031786666,0.03405611,202.47,202.44,1.3743071]
[1757031786866,0.03405611,202.47,202.45,7.4]
[1757031787365,0.03405611,202.47,202.46,8.7743071]
[1757031787666,0.03405611,202.47,202.46,7.4]
[1757031787866,0.03405611,202.47,202.46,8.7743071]
[1757031790069,0.03405611,202.47,202.41,0.03715343]
[1757031790269,0.03405611,202.47,202.41,7.43715343]
[1757031790470,0.03405611,202.47,202.44,1.3743071]
[1757031790670,7.52405611,202.47,202.44,1.3743071]
[1757031791165,7.52405611,202.47,202.42,7.4]
[1757031791468,7.52405611,202.47,202.44,7.4]
[1757031794874,0.03405611,202.47,202.43,1.3743071]
[1757031795070,7.49,202.46,202.43,1.3743071]
[1757031795470,1.40836321,202.47,202.41,0.03715343]
[1757031795671,7.49,202.46,202.41,0.03715343]
[1757031795867,0.03405611,202.47,202.41,0.03715343]
[1757031796070,1.3743071,202.45,202.41,0.03715343]
[1757031796265,7.49,202.44,202.41,0.03715343]
[1757031796471,5.52074678,202.47,202.41,0.03715343]
[1757031796472,7.49,202.42,202.41,0.03715343]
[1757031803981,12.86669067,202.46,202.42,8.07]
[1757031804275,0.03405611,202.47,202.43,8.07]
[1757031804676,0.03405611,202.47,202.42,1.3743071]
[1757031804877,0.03405611,202.47,202.46,9.4443071]
[1757031809076,7.38,202.46,202.44,1.3743071]
[1757031809380,0.03405611,202.47,202.44,9.4443071]
[1757031809575,0.03405611,202.47,202.42,41.12]
[1757031809576,0.03405611,202.47,202.46,9.4443071]
[1757031813985,0.03405611,202.47,202.46,1.3743071]
[1757031814485,7.41405611,202.47,202.43,1.3743071]
[1757031814686,7.41405611,202.47,202.43,9.4443071]
[1757031815286,7.41405611,202.47,202.42,1.3743071]
[1757031815478,0.03405611,202.47,202.41,1.41146053]
[1757031815784,7.41405611,202.47,202.41,1.41146053]
[1757031816482,8.78836321,202.47,202.41,1.41146053]
[1757031817582,8.78836321,202.47,202.41,0.03715343]
[1757031821586,7.41405611,202.47,202.41,0.03715343]
[1757031824888,1.3743071,202.46,202.41,0.03715343]
[1757031825297,0.03405611,202.47,202.41,9.48146053]
[1757031829191,0.03405611,202.47,202.43,1.3743071]
[1757031829492,7.93405611,202.47,202.41,9.49146053]
[1757031829692,7.93405611,202.47,202.41,8.11715343]
[1757031829994,7.9,202.45,202.41,8.11715343]
[1757031830788,1.3743071,202.46,202.41,8.11715343]
[1757031830989,7.9,202.45,202.41,8.11715343]
[1757031832691,1.3743071,202.44,202.41,0.03715343]
[1757031832899,9.2743071,202.42,202.41,0.03715343]
[1757031834194,9.2743071,202.44,202.41,8.11715343]
[1757031834402,9.2743071,202.46,202.42,8.08]
[1757031834589,7.9,202.46,202.41,0.03715343]
[1757031834789,0.03405611,202.47,202.43,8.08]
[1757031835697,0.03405611,202.47,202.42,1.3743071]
[1757031836096,0.03405611,202.47,202.45,8.08]
[1757031837905,7.93405611,202.47,202.41,9.49146053]
[1757031838900,0.03405611,202.47,202.41,9.49146053]
[1757031839090,0.03405611,202.47,202.43,1.3743071]
[1757031839802,0.03405611,202.47,202.44,8.08]
[1757031839991,0.03405611,202.47,202.43,1.3743071]
[1757031840200,0.03405611,202.47,202.44,8.08]
[1757031841501,7.93405611,202.47,202.44,8.08]
[1757031842200,0.03405611,202.47,202.44,8.08]
[1757031842599,0.03405611,202.47,202.43,1.3743071]
[1757031842999,7.93405611,202.47,202.44,8.08]
[1757031843498,7.93405611,202.47,202.43,1.3743071]
[1757031843499,0.03405611,202.47,202.43,1.3743071]
[1757031843804,0.03405611,202.47,202.44,8.08]
[1757031844005,0.03405611,202.47,202.43,1.3743071]
[1757031844006,0.03405611,202.47,202.46,8.08]
[1757031846597,0.03405611,202.47,202.46,9.4543071]
[1757031846802,13.38669067,202.6,202.46,9.9543071]
[1757031847004,1.3743071,202.59,202.52,9.4543071]
[1757031847504,7.9,202.6,202.52,8.08]
[1757031848104,7.9,202.6,202.54,0.03681049]
[1757031848607,7.9,202.63,202.55,8.08]
[1757031849604,7.9,202.63,202.56,2.14538417]
[1757031849800,10.86,202.67,202.57,8.08]
[1757031850000,7.9,202.67,202.57,8.08]
[1757031850406,7.9,202.67,202.6,0.03655746]
[1757031850604,7.9,202.67,202.6,8.11655746]
[1757031853101,7.9,202.67,202.6,0.03655746]
[1757031855004,10.04538417,202.67,202.6,0.03655746]
[1757031855408,10.04538417,202.67,202.6,8.11655746]
[1757031856109,10.04538417,202.67,202.6,0.03655746]
[1757031859213,7.9,202.67,202.6,0.03655746]
[1757031861319,7.9,202.67,202.6,7.70655746]
[1757031871218,7.53,202.7,202.62,7.67]
[1757031871620,0.03377894,202.68,202.62,7.67]
[1757031872521,0.03377894,202.68,202.65,7.67]
[1757031872720,0.03377894,202.68,202.64,2.14538417]
[1757031873220,0.03377894,202.68,202.65,7.67]
[1757031873924,0.03377894,202.68,202.64,0.035991]
[1757031874124,0.03377894,202.68,202.64,2.18137517]
[1757031874326,0.03377894,202.68,202.65,7.67]
[1757031874526,0.03377894,202.68,202.64,2.18137517]
[1757031874726,0.03377894,202.68,202.65,7.67]
[1757031875226,0.03377894,202.68,202.64,2.18137517]
[1757031875421,0.03377894,202.68,202.64,0.035991]
[1757031875621,0.03377894,202.68,202.66,7.67]
[1757031876027,0.03377894,202.68,202.67,7.67]
[1757031876228,0.03377894,202.68,202.67,8.17]
[1757031876831,0.03377894,202.68,202.67,130.97]
[1757031878426,7.85,202.71,202.67,130.97]
[1757031878638,7.85,202.71,202.69,2.14538417]
[1757031878930,7.85,202.71,202.7,7.67]
[1757031879634,7.85,202.71,202.7,130.45]
[1757031880732,7.85,202.71,202.7,7.67]
[1757031880937,7.85,202.71,202.7,130.43]
[1757031884140,7.53,202.76,202.7,130.43]
[1757031884339,7.53,202.76,202.72,2.14538417]
[1757031884540,7.53,202.76,202.73,7.67]
[1757031885739,2.14538417,202.83,202.73,42.26]
[1757031885938,7.53,202.82,202.72,0.03777624]
[1757031886233,7.53,202.82,202.72,31.71777624]
[1757031886641,9.69,202.81,202.72,31.71777624]
[1757031886836,7.53,202.8,202.72,31.71777624]
[1757031887231,9.69,202.81,202.72,31.71777624]
[1757031887437,7.53,202.8,202.72,62.35777624]
[1757031887638,9.69,202.81,202.72,62.35777624]
[1757031887837,7.57,202.8,202.73,7.79]
[1757031891947,17.26,202.81,202.75,2.14538417]
[1757031892147,17.26,202.81,202.75,9.93538417]
[1757031892544,17.26,202.81,202.75,53.03]
[1757031893149,17.26,202.81,202.74,86.46]
[1757031893344,7.57,202.8,202.74,86.46]
[1757031895042,7.57,202.8,202.72,9.97316041]
[1757031895248,7.57,202.8,202.72,7.82777624]
[1757031899052,7.57,202.8,202.72,0.03777624]
[1757031900743,7.57,202.8,202.72,7.82777624]
[1757031900943,7.57,202.8,202.72,9.97316041]
[1757031901446,9.69,202.81,202.75,2.14538417]
[1757031901647,9.69,202.81,202.76,7.79]
[1757031901842,9.69,202.81,202.75,2.14538417]
[1757031902048,9.69,202.81,202.76,7.79]
[1757031902249,9.69,202.81,202.76,0.03673537]
[1757031902452,17.26,202.81,202.77,7.79]
[1757031905449,7.57,202.81,202.77,7.79]
[1757031905852,7.57,202.87,202.77,7.79]
[1757031908856,7.57,202.87,202.79,7.79]
[1757031909056,8.27,202.86,202.79,7.79]
[1757031909560,15.84,202.86,202.82,9.15923774]
[1757031909761,15.84,202.86,202.84,1.36923774]
[1757031909956,8.27,202.86,202.84,9.15923774]
[1757031912166,8.27,202.86,202.85,7.79]
[1757031912669,8.27,202.86,202.85,9.15923774]
[1757031912968,8.27,202.86,202.85,1.36923774]
[1757031913464,8.27,202.86,202.85,9.15923774]
[1757031914066,8.27,202.86,202.85,1.36923774]
[1757031914871,8.27,202.86,202.85,9.15923774]
[1757031916478,8.27,202.86,202.85,9.65923774]
[1757031917281,7.57,202.95,202.85,9.65923774]
[1757031917584,7.57,202.99,202.93,1.36923774]
[1757031918387,7.97,203.0,202.94,0.03758587]
[1757031919283,1.36923774,203.01,202.95,1.36923774]
[1757031919682,5.48669067,203.05,202.95,1.36923774]
[1757031919886,7.97,203.01,202.95,1.36923774]
[1757031920484,7.97,202.99,202.95,9.16923774]
[1757031920977,9.74,203.0,202.98,7.8]
[1757031921281,17.71,203.0,202.97,1.36923774]
[1757031921577,9.74,203.0,202.97,1.36923774]